lending/lending_fUSD_20260330
["ID","MTS","AMOUNT","RATE_DAILY","PERIOD"]
[419135352,1774908646465,-9559.21788676,0.000159,2]
[419135395,1774908972084,202.39,6.279e-05,2]
[419135396,1774908972288,202.39,6.61e-05,2]
[419135397,1774908972487,202.39,6.94e-05,2]
[419135398,1774908972691,202.39,7.271e-05,2]
[419135399,1774908972896,202.39,7.601e-05,2]
[419135400,1774908973094,202.39,7.932e-05,2]
[419135401,1774908973312,202.39,8.262e-05,2]
[419135402,1774908973517,202.39,8.593e-05,2]
[419135404,1774909587012,231.72,8.148e-05,2]
[419135406,1774909652215,1200.0,7.476e-05,2]
[419135407,1774909652401,875.9,8.076e-05,2]
[419135408,1774909754112,-414.85,8.855e-05,2]
[419135409,1774909754135,-250.0,8.867e-05,2]
[419135410,1774909754157,-564.58,8.879e-05,2]
[419135411,1774909754179,-250.0,8.899e-05,2]
[419135412,1774909754201,-757.26810866,8.919e-05,2]
[419135413,1774909771106,-139.63528494,8.919e-05,2]
[419135414,1774909771127,-167.26699179,8.919e-05,2]
[419135415,1774909771147,-202.39,8.923e-05,2]
[419135416,1774909771503,-202.39,9.254e-05,2]
[419135417,1774909771523,-202.39,9.584e-05,2]
[419135418,1774909771545,-196.74292527,9.601e-05,2]
[419135424,1774909832480,-300.21707473,9.601e-05,2]
[419135425,1774909832490,-250.0,9.67e-05,2]
[419135426,1774909832499,-250.0,9.74e-05,2]
[419135427,1774909832509,-150.0,9.8e-05,2]
[419135428,1774909832519,-1200.0,9.809e-05,2]
[419135429,1774909832528,-5000.0,9.81e-05,2]
[419135430,1774909832538,-202.39,9.915e-05,2]
[419135431,1774909832547,-300.0,9.999e-05,2]
[419135432,1774909832557,-150.0,9.999e-05,2]
[419135433,1774909832567,-485.30866739,0.0001,2]
[419135434,1774909832576,-485.30866739,0.0001,2]
[419135435,1774909832586,-485.30866739,0.0001,2]
[419135436,1774909832596,-500.0,0.0001,2]
[419135438,1774909832605,-500.0,0.0001,2]
[419135439,1774909832615,-500.0,0.0001,2]
[419135441,1774909832624,-500.0,0.0001,2]
[419135443,1774909832634,-500.0,0.0001,2]
[419135444,1774909832644,-500.0,0.0001,2]
[419135445,1774909832654,-500.0,0.0001,2]
[419135446,1774909832663,-500.0,0.0001,2]
[419135447,1774909832673,-500.0,0.0001,2]
[419135448,1774909832684,-500.0,0.0001,2]
[419135449,1774909832693,-151.0,0.0001,2]
[419135450,1774909832702,-151.0,0.0001,2]
[419135451,1774909832712,-151.0,0.0001,2]
[419135452,1774909832721,-151.0,0.0001,2]
[419135453,1774909832731,-151.0,0.0001,2]
[419135454,1774909832740,-151.0,0.0001,2]
[419135455,1774909832750,-151.0,0.0001,2]
[419135456,1774909832759,-151.0,0.0001,2]
[419135457,1774909832768,-151.0,0.0001,2]
[419135458,1774909832778,-151.0,0.0001,2]
[419135459,1774909832790,-151.0,0.0001,2]
[419135460,1774909832800,-202.39,0.00010245,2]
[419135461,1774909832810,-150.0,0.0001026,2]
[419135462,1774909832819,-250.0,0.00010561,2]
[419135463,1774909832828,-202.39,0.00010576,2]
[419135464,1774909832838,-1680.0,0.0001079,2]
[419135465,1774909832848,-202.39,0.00010906,2]
[419135466,1774909832857,-420.0,0.00010999,2]
[419135467,1774909832867,-255.0,0.00010999,2]
[419135468,1774909832876,-196.8462,0.000112,7]
[419135469,1774909832886,-167.26699179,0.00011217,2]
[419135470,1774909832895,-202.39,0.00011237,2]
[419135471,1774909832905,-1600.0,0.00011326,2]
[419135472,1774909832915,-500.0,0.00011363,2]
[419135473,1774909832924,-163.99,0.00011514,2]
[419135474,1774909832933,-202.39,0.00011567,2]
[419135475,1774909832943,-1612.0,0.00011869,2]
[419135476,1774909832952,-202.39,0.00011898,2]
[419135477,1774909832961,-12365.74,0.00011903,2]
[419135478,1774909832970,-587.0,0.00012099,2]
[419135479,1774909832979,-202.39,0.00012228,2]
[419135480,1774909832989,-202.39,0.00012559,2]
[419135481,1774909832999,-258.3228,0.000127,12]
[419135482,1774909833008,-1399.08,0.00012712,2]
[419135483,1774909833017,-1600.0,0.00012742,2]
[419135484,1774909833027,-250.0,0.00013,2]
[419135485,1774909833036,-668.0,0.00013309,2]
[419135486,1774909833046,-1000.0,0.00013424,2]
[419135487,1774909833055,-3240.0,0.00013425,2]
[419135488,1774909833065,-379.15,0.00013558,2]
[419135489,1774909833074,-167.26699179,0.00013615,2]
[419135490,1774909833083,-1000.0,0.00013698,2]
[419135491,1774909833093,-150.0,0.00013699,2]
[419135492,1774909833102,-184.65,0.00013699,2]
[419135493,1774909833111,-200.0,0.00013699,2]
[419135494,1774909833120,-9972.69,0.00013699,2]
[419135495,1774909833129,-581.81,0.00013699,2]
[419135496,1774909833138,-150.99,0.00013699,2]
[419135497,1774909833147,-9999.99,0.00013699,2]
[419135498,1774909833156,-2000.0,0.00013715,2]
[419135499,1774909833166,-1600.0,0.00014157,2]
[419135500,1774909833176,-338.9992,0.000142,17]
[419135501,1774909833187,-163.99,0.00014393,2]
[419135502,1774909833197,-2000.0,0.000144,2]
[419135503,1774909833207,-167.50949229,0.00014533,2]
[419135504,1774909833218,-502.22628462,0.00014533,2]
[419135505,1774909833228,-165.43169061,0.00014533,2]
[419135506,1774909833238,-500.0,0.00014533,2]
[419135507,1774909833248,-200.0,0.00014891,2]
[419135508,1774909833258,-6072.97,0.00014964,2]
[419135509,1774909833269,-28000.427272,0.00014973,2]
[419135510,1774909833285,-17000.0,0.00014973,2]
[419135511,1774909833300,-2086.21568691,0.00014973,2]
[419135512,1774909833314,-940.11642928,0.00014973,2]
[419135513,1774909833325,-50578.88031181,0.00014973,2]
[419135514,1774909833334,-300.0,0.00015,2]
[419135515,1774909833344,-160.0,0.00015044,2]
[419135516,1774909833353,-211.48003602,0.00015052,2]
[419135517,1774909833365,-133.28626398,0.00015052,2]
[419135518,1774909833374,-2277.175267,0.00015053,2]
[419135519,1774909833386,-222.824733,0.00015053,2]
[419135520,1774909833395,-22831.2531,0.00015053,2]
[419135521,1774909833404,-161.0,0.0001507,2]
[419135522,1774909833414,-5220.09316236,0.00015073,2]
[419135523,1774909833423,-12699.65707975,0.00015073,2]
[419135524,1774909833433,-4585.23588336,0.00015073,2]
[419135525,1774909833445,-201.09862568,0.00015073,2]
[419135526,1774909833454,-631.13,0.00015143,2]
[419135527,1774909833463,-422.18946109,0.00015143,2]
[419135529,1774909838336,-2500.0,0.00015053,2]
[419135530,1774909838345,-208.94053891,0.00015143,2]
[419135531,1774909838355,-631.13,0.00015143,2]
[419135532,1774909838364,-631.13,0.00015143,2]
[419135533,1774909838373,-631.13,0.00015143,2]
[419135534,1774909838382,-500.0,0.00015152,2]
[419135535,1774909838391,-500.0,0.00015152,2]
[419135536,1774909838400,-500.0,0.00015152,2]
[419135537,1774909838410,-500.0,0.00015152,2]
[419135538,1774909838419,-500.0,0.00015152,2]
[419135539,1774909838429,-500.0,0.00015152,2]
[419135540,1774909838438,-500.0,0.00015152,2]
[419135541,1774909838448,-500.0,0.00015152,2]
[419135542,1774909838457,-500.0,0.00015152,2]
[419135543,1774909838467,-500.0,0.00015152,2]
[419135544,1774909838476,-500.0,0.00015152,2]
[419135545,1774909838485,-500.0,0.00015152,2]
[419135546,1774909838494,-500.0,0.00015152,2]
[419135547,1774909838503,-500.0,0.00015152,2]
[419135548,1774909838513,-500.0,0.00015152,2]
[419135549,1774909838522,-500.0,0.00015152,2]
[419135550,1774909838531,-538.18923009,0.00015152,2]
[419135551,1774909838540,-500.0,0.00015152,2]
[419135552,1774909838550,-500.0,0.00015152,2]
[419135553,1774909838559,-500.0,0.00015152,2]
[419135554,1774909838568,-500.0,0.00015152,2]
[419135555,1774909838578,-500.0,0.00015152,2]
[419135556,1774909838588,-500.0,0.00015152,2]
[419135557,1774909838597,-500.0,0.00015152,2]
[419135558,1774909838607,-500.0,0.00015152,2]
[419135559,1774909838616,-500.0,0.00015152,2]
[419135560,1774909838626,-500.0,0.00015152,2]
[419135561,1774909838636,-500.0,0.00015152,2]
[419135562,1774909838646,-500.0,0.00015152,2]
[419135563,1774909838656,-500.0,0.00015152,2]
[419135564,1774909838665,-500.0,0.00015152,2]
[419135565,1774909838675,-500.0,0.00015152,2]
[419135566,1774909838685,-500.0,0.00015152,2]
[419135567,1774909838695,-500.0,0.00015152,2]
[419135568,1774909838704,-500.0,0.00015152,2]
[419135569,1774909838714,-500.0,0.00015152,2]
[419135570,1774909838724,-500.0,0.00015152,2]
[419135571,1774909838734,-500.0,0.00015152,2]
[419135572,1774909838745,-500.0,0.00015152,2]
[419135573,1774909838754,-500.0,0.00015152,2]
[419135574,1774909838765,-500.0,0.00015152,2]
[419135575,1774909838775,-500.0,0.00015152,2]
[419135576,1774909838784,-500.0,0.00015152,2]
[419135577,1774909838793,-500.0,0.00015152,2]
[419135578,1774909838803,-500.0,0.00015152,2]
[419135579,1774909838812,-500.0,0.00015152,2]
[419135580,1774909838822,-500.0,0.00015152,2]
[419135581,1774909838830,-500.0,0.00015152,2]
[419135582,1774909838839,-44.17702948,0.00015152,2]
[419135583,1774909838851,-341.50517263,0.00015152,2]
[419135584,1774909838870,-114.31779789,0.00015152,2]
[419135585,1774909838878,-500.0,0.00015152,2]
[419135586,1774909838888,-40.28220211,0.00015152,2]
[419135587,1774909838899,-459.71779789,0.00015152,2]
[419135588,1774909838909,-500.0,0.00015152,2]
[419135589,1774909838918,-500.0,0.00015152,2]
[419135590,1774909838927,-500.0,0.00015152,2]
[419135592,1774909838937,-500.0,0.00015152,2]
[419135593,1774909838946,-500.0,0.00015152,2]
[419135594,1774909838956,-500.0,0.00015152,2]
[419135595,1774909838965,-500.0,0.00015152,2]
[419135596,1774909838975,-500.0,0.00015152,2]
[419135597,1774909838984,-500.0,0.00015152,2]
[419135598,1774909838994,-500.0,0.00015152,2]
[419135599,1774909839003,-500.0,0.00015152,2]
[419135600,1774909839014,-500.0,0.00015152,2]
[419135601,1774909839024,-500.0,0.00015152,2]
[419135602,1774909839034,-500.0,0.00015152,2]
[419135603,1774909839043,-253.818923,0.00015152,2]
[419135604,1774909839054,-500.0,0.00015152,2]
[419135605,1774909839063,-500.0,0.00015152,2]
[419135606,1774909839072,-500.0,0.00015152,2]
[419135608,1774909839082,-500.0,0.00015152,2]
[419135609,1774909839091,-500.0,0.00015152,2]
[419135610,1774909839100,-500.0,0.00015152,2]
[419135611,1774909839110,-500.0,0.00015152,2]
[419135612,1774909839119,-11140.22403915,0.00015153,2]
[419135613,1774909839299,-500.0,0.00015152,2]
[419135614,1774909839308,-32505.66509661,0.00015153,2]
[419135615,1774909839321,-779.55147576,0.00015153,2]
[419135619,1774909840920,-431834.52538848,0.00015153,2]
[419135620,1774909840932,-500.0,0.00015173,2]
[419135621,1774909840943,-500.50490882,0.00015173,2]
[419135622,1774909840952,-2586.3999736,0.00015253,2]
[419135623,1774909840962,-1102.361562,0.00015253,2]
[419135624,1774909840972,-2000.0,0.0001543,2]
[419135625,1774909840982,-1600.0,0.00015573,2]
[419135626,1774909840992,-500.0,0.000156,5]
[419135627,1774909841005,-5220.09316236,0.00015609,2]
[419135628,1774909841017,-12699.65707975,0.00015609,2]
[419135629,1774909841028,-208.110354,0.0001568,7]
[419135630,1774909841041,-444.8714,0.000157,22]
[419135631,1774909841051,-1100.0,0.000157,5]
[419135632,1774909841062,-712.0,0.00015781,2]
[419135633,1774909841073,-5000.0,0.000158,2]
[419135634,1774909841083,-1600.0,0.000158,5]
[419135635,1774909841093,-500.0,0.00015872,2]
[419135636,1774909841115,-221.78565646,0.00015873,2]
[419135637,1774909841126,-248.81003881,0.00015873,2]
[419135638,1774909841136,-500.0,0.00015873,2]
[419135639,1774909841146,-500.0,0.00015873,2]
[419135640,1774909841156,-500.0,0.00015873,2]
[419135641,1774909841166,-388.43757161,0.00015873,2]
[419135642,1774909841176,-219.88270067,0.0001589,2]
[419135643,1774909841188,-166442.2087,0.0001589,2]
[419135644,1774909841199,-300.0,0.0001589,2]
[419135645,1774909841209,-219.88270066,0.00015895,2]
[419135646,1774909841219,-1209.76666056,0.000159,2]
[419135647,1774909841231,-1000.0,0.000159,2]
[419135648,1774909841241,-209.78091934,0.000159,2]
[419135649,1774909841252,-2200.0,0.000159,5]
[419135650,1774909841262,-219.88270066,0.000159,2]
[419135651,1774909841272,-360.5862057,0.000159,2]
[419135652,1774909841282,-343.31136028,0.000159,2]
[419135653,1774909841292,-370.35780072,0.000159,2]
[419135654,1774909841302,-200.0,0.000159,2]
[419135655,1774909841313,-485.9990481,0.000159,2]
[419135656,1774909841322,-4103.88482466,0.000159,2]
[419135657,1774909841333,-978.0,0.00015973,2]
[419135658,1774909841342,-10730.0,0.00015973,2]
[419135659,1774909841354,-1110.5901787,0.0001599,2]
[419135660,1774909841364,-151.0,0.00015997,2]
[419135661,1774909841373,-498.82,0.00015999,2]
[419135662,1774909841383,-2242.041,0.00015999,2]
[419135663,1774909841393,-499.58032576,0.00015999,2]
[419135664,1774909841403,-500.0,0.00015999,2]
[419135665,1774909841413,-289.33151673,0.00015999,2]
[419135666,1774909841423,-500.0,0.00015999,2]
[419135667,1774909841433,-500.0,0.00015999,2]
[419135668,1774909841444,-500.0,0.00015999,2]
[419135669,1774909841454,-1615136.20650318,0.00016,2]
[419135670,1774909841521,-378.66,0.00016,2]
[419135672,1774909842468,-4267.02929975,0.00016,2]
[419135673,1774909843170,-521.75981653,0.00016,2]
[419135677,1774909843702,-16620.27,0.00016,2]
[419135678,1774909843759,-253.0,0.00016,2]
[419135679,1774909843817,-26976.77963884,0.00016,2]
[419135680,1774909843986,-761.0,0.00016,2]
[419135681,1774909843998,-3400.0,0.00016,2]
[419135820,1774909846257,-215.0,9.989e-05,2]
[419135821,1774909846267,-3613.02471361,0.00016,2]
[419135822,1774909846313,-1284.3278436,0.00016,2]
[419135823,1774909846372,-91660.89774847,0.00016,2]
[419135824,1774909846383,-3568.01656786,0.00016,2]
[419135825,1774909846537,-12199.81699304,0.00016,2]
[419135826,1774909846549,-5570.45453968,0.00016,2]
[419135827,1774909846753,-270.39079621,0.00016,2]
[419135845,1774910646407,298.27,8.4e-05,2]
[419135847,1774910948297,5000.01,7.945e-05,2]
[419135848,1774910948319,2098.289462,7.945e-05,2]
[419135849,1774910971149,-1200.0,9.999e-05,2]
[419135850,1774910971170,-260.0,0.0001,2]
[419135851,1774910971191,-2044.84,0.0001,2]
[419135852,1774910971211,-182.6136217,0.00010174,2]
[419135853,1774910971235,-600.0,0.00010999,2]
[419135854,1774910971255,-600.0,0.00010999,2]
[419135855,1774910971276,-600.0,0.00010999,2]
[419135856,1774910971296,-182.80572961,0.00010999,2]
[419135857,1774910971316,-1151.0,0.00010999,2]
[419135858,1774910971336,-150.0,0.00010999,2]
[419135859,1774910971356,-300.0,0.00010999,2]
[419135860,1774910971376,-600.0,0.00011,2]
[419135861,1774910971399,-1650.58,0.00011507,2]
[419135862,1774910971422,-163.27,0.00011653,2]
[419135863,1774910971444,-255.0,0.00012044,2]
[419135864,1774910971465,-287.0,0.00012087,2]
[419135865,1774910971485,-150.0,0.000121,2]
[419135866,1774910971505,-150.0,0.00012259,2]
[419135867,1774910971525,-8667.12,0.00012539,2]
[419135868,1774910971544,-151.0,0.00012767,2]
[419135869,1774910971565,-172.04,0.00012983,2]
[419135870,1774910971585,-250.0,0.00013,2]
[419135871,1774910971604,-180.05,0.00013365,2]
[419135872,1774910971625,-657.0206,0.00013399,2]
[419135873,1774910971645,-9891.0442,0.00013399,2]
[419135874,1774910971664,-878.32470845,0.00013399,2]
[419135875,1774910971686,-11140.39449146,0.000134,2]
[419135876,1774910971706,-5281.7159825,0.000134,2]
[419135877,1774910971726,-5509.31957863,0.000134,2]
[419135878,1774910971746,-500.0,0.00013473,2]
[419135879,1774910971767,-380.89845004,0.00013473,2]
[419135880,1774910971786,-334.63952761,0.00013473,2]
[419135881,1774910971806,-500.0,0.00013473,2]
[419135882,1774910972178,-151.0,0.00013491,2]
[419135883,1774910972200,-151.0,0.00013491,2]
[419135884,1774910972222,-151.0,0.00013491,2]
[419135885,1774910972244,-96.80367,0.00013491,2]
[419135891,1774911031458,-437.18897472,0.00013398,2]
[419135892,1774911031514,-2182.37961044,0.00013398,2]
[419135893,1774911031525,-25516.55747831,0.00013398,2]
[419135894,1774911031536,-8408.46727034,0.00013398,2]
[419135895,1774911031547,-292.97700002,0.00013398,2]
[419135896,1774911031621,-400.0,0.00013398,2]
[419135897,1774911031631,-584.03326495,0.00013398,2]
[419135898,1774911031642,-872.30710122,0.00013398,2]
[419135899,1774911031651,-300.0,0.00013399,2]
[419135900,1774911031660,-250.0,0.00013399,2]
[419135901,1774911031669,-600.0,0.00013399,2]
[419135902,1774911031678,-4627.03941351,0.000134,2]
[419135903,1774911031688,-300.0,0.00013429,2]
[419135904,1774911031696,-300.0,0.00013429,2]
[419135905,1774911031705,-300.0,0.00013429,2]
[419135906,1774911031715,-600.0,0.00013457,2]
[419135907,1774911031724,-600.0,0.00013457,2]
[419135908,1774911031733,-500.0,0.00013473,2]
[419135909,1774911031742,-500.0,0.00013473,2]
[419135910,1774911031752,-500.0,0.00013473,2]
[419135911,1774911031761,-500.0,0.00013473,2]
[419135912,1774911031771,-500.0,0.00013473,2]
[419135913,1774911031780,-54.19633,0.00013491,2]
[419135914,1774911031789,-182.53770041,0.00013491,2]
[419135915,1774911031798,-1326.17287744,0.00013498,3]
[419135916,1774911031807,-1793.633,0.00013498,2]
[419135917,1774911031815,-500.0,0.00013498,2]
[419135918,1774911031824,-355509.46442498,0.00013499,2]
[419135919,1774911031835,-117421.28387591,0.00013499,2]
[419135920,1774911031846,-144668.77239911,0.00013499,2]
[419135921,1774911031855,-150.0,0.000135,2]
[419135922,1774911031864,-500.0,0.00013698,2]
[419135923,1774911031873,-7171.97,0.000137,2]
[419135924,1774911031882,-7171.97,0.000137,2]
[419135925,1774911031891,-500.0,0.00013772,2]
[419135926,1774911031899,-1001.9357854,0.00014021,2]
[419135927,1774911031908,-500.0,0.00014021,2]
[419135928,1774911031917,-166.66,0.00014121,2]
[419135930,1774911031926,-1852.42,0.0001424,2]
[419135932,1774911031935,-185.37,0.00014299,2]
[419135934,1774911031944,-166.66,0.00014418,2]
[419135936,1774911031954,-5281.71598244,0.00014678,2]
[419135938,1774911031963,-166.66,0.00014715,2]
[419135940,1774911031971,-11140.39449143,0.00014722,2]
[419135942,1774911031981,-600.0,0.00014738,2]
[419135944,1774911031990,-195.0,0.00014738,2]
[419135946,1774911031999,-195.0,0.00014738,2]
[419135948,1774911032008,-195.0,0.00014738,2]
[419135949,1774911032017,-195.0,0.00014738,2]
[419135951,1774911032026,-314.12857025,0.00014738,2]
[419135953,1774911032035,-300.0,0.00014738,2]
[419135955,1774911032044,-300.0,0.00014738,2]
[419135957,1774911032053,-300.0,0.00014738,2]
[419135959,1774911032062,-300.0,0.00014738,2]
[419135961,1774911032071,-300.0,0.00014738,2]
[419135963,1774911032080,-2500.0,0.00014738,2]
[419135965,1774911032090,-2500.0,0.00014738,2]
[419135967,1774911032098,-2500.0,0.00014738,2]
[419135968,1774911032107,-2500.0,0.00014738,2]
[419135969,1774911032116,-2500.0,0.00014738,2]
[419135970,1774911032125,-300.0,0.00014738,2]
[419135971,1774911032134,-500.0,0.00014738,2]
[419135972,1774911032143,-500.0,0.00014738,2]
[419135973,1774911032153,-500.0,0.00014738,2]
[419135974,1774911032162,-500.0,0.00014738,2]
[419135975,1774911032171,-500.0,0.00014738,2]
[419135976,1774911032180,-250.0,0.00014738,2]
[419135977,1774911032189,-196.8477,0.000148,7]
[419135978,1774911032198,-1500.0,0.00014864,2]
[419135979,1774911032207,-150.0,0.00014864,2]
[419135980,1774911032216,-300.0,0.000149,5]
[419135981,1774911032225,-300.0,0.00015,2]
[419135982,1774911032235,-166.66,0.00015013,2]
[419135983,1774911032244,-1000.0,0.00015053,2]
[419135984,1774911032254,-197.53,0.00015068,2]
[419135985,1774911032263,-172.04,0.00015126,2]
[419135986,1774911032273,-500.0,0.00015199,2]
[419135987,1774911032282,-166.66,0.0001531,2]
[419135988,1774911032291,-1571.0,0.000154,2]
[419135989,1774911032300,-4000.0,0.00015507,2]
[419135990,1774911032309,-166.66,0.00015607,2]
[419135991,1774911032319,-298.0,0.00015753,2]
[419135992,1774911032328,-500.0,0.00015872,2]
[419135993,1774911032337,-2000.0,0.0001589,2]
[419135994,1774911032346,-4000.0,0.00015895,2]
[419135995,1774911032355,-1287.0321,0.000159,2]
[419135996,1774911032364,-257.71213785,0.000159,2]
[419135997,1774911032374,-5000.0,0.000159,2]
[419135998,1774911032383,-700.0,0.000159,5]
[419135999,1774911032392,-5281.71598244,0.00015956,2]
[419136000,1774911032401,-356.03578514,0.00015973,2]
[419136001,1774911032410,-500.0,0.00015973,2]
[419136002,1774911032419,-500.0,0.00015973,2]
[419136003,1774911032428,-354.1673573,0.00015989,2]
[419136004,1774911032440,-5267.592324,0.00015989,2]
[419136005,1774911032449,-740.39345247,0.0001599,2]
[419136006,1774911032459,-181.65378037,0.00015993,2]
[419136007,1774911032468,-11949.69645481,0.00015999,2]
[419136008,1774911032476,-73294.48657182,0.00016,2]
[419136009,1774911032492,-871.83149132,0.00016,2]
[419136010,1774911032504,-294.40797712,0.00016,2]
[419136015,1774911037525,-500.0,0.00014046,2]
[419136019,1774911038029,-500.0,0.0001432,2]
[419136020,1774911038038,-500.0,0.00014594,2]
[419136021,1774911038046,-611.77173251,0.00016,2]
[419136022,1774911038057,-1099.68383646,0.00016,2]
[419136023,1774911038090,-6439.9,0.00016,2]
[419136024,1774911038100,-1256.40417357,0.00016,2]
[419136026,1774911039789,-995.29157668,0.000159,2]
[419136027,1774911039803,-53.55223226,0.000159,2]
[419136028,1774911039812,-482.39315606,0.00016,2]
[419136048,1774911045590,-12176.63240506,0.00016,2]
[419136049,1774911045698,-3569.0,0.00016,2]
[419136050,1774911045750,-3273.76993,0.00016,2]
[419136054,1774911046679,-405.03298519,0.00016,2]
[419136055,1774911047014,-434.72453498,0.00016,2]
[419136063,1774911570865,183.26,7.071e-05,2]
[419136072,1774912169132,-305.794966,9.899e-05,2]
[419136073,1774912169154,-250.0,9.899e-05,2]
[419136074,1774912169177,-500.0,9.899e-05,2]
[419136075,1774912169198,-150.0,9.999e-05,2]
[419136076,1774912169234,-300.0,9.999e-05,2]
[419136077,1774912169255,-165.54502488,0.0001,2]
[419136078,1774912169278,-500.0,0.0001,2]
[419136079,1774912169300,-500.0,0.0001,2]
[419136080,1774912169322,-500.0,0.0001,2]
[419136081,1774912169345,-469.82857356,0.0001,2]
[419136082,1774912172076,-30.17142644,0.0001,2]
[419136083,1774912172098,-500.0,0.0001,2]
[419136084,1774912172119,-500.0,0.0001,2]
[419136085,1774912172140,-81.23834156,0.0001,2]
[419136097,1774912231590,-1200.0,9.999e-05,2]
[419136098,1774912231599,-137.70986208,0.0001,2]
[419136099,1774912231642,-281.05179636,0.0001,2]
[419136100,1774912231652,-500.0,0.0001,2]
[419136101,1774912231661,-500.0,0.0001,2]
[419136102,1774912231671,-500.0,0.0001,2]
[419136103,1774912231680,-500.0,0.0001,2]
[419136104,1774912231689,-500.0,0.0001,2]
[419136105,1774912231698,-193.0,0.00010889,2]
[419136106,1774912231708,-250.0,0.00010889,2]
[419136107,1774912231717,-600.0,0.00011,2]
[419136108,1774912231726,-600.0,0.00011806,2]
[419136109,1774912231735,-600.0,0.00011806,2]
[419136110,1774912231745,-600.0,0.00011806,2]
[419136111,1774912231754,-600.0,0.00011806,2]
[419136112,1774912231764,-151.0,0.00012719,2]
[419136113,1774912231773,-4124.27330374,0.00013,2]
[419136114,1774912231783,-151.0,0.0001301,2]
[419136115,1774912231792,-235.89,0.00013139,2]
[419136116,1774912231801,-151.0,0.00013365,2]
[419136117,1774912231811,-151.0,0.00013365,2]
[419136118,1774912231823,-151.0,0.00013365,2]
[419136119,1774912231832,-151.0,0.00013365,2]
[419136120,1774912231842,-151.0,0.00013365,2]
[419136121,1774912231852,-151.0,0.00013365,2]
[419136122,1774912231862,-151.0,0.00013365,2]
[419136123,1774912231871,-151.0,0.00013365,2]
[419136124,1774912231880,-151.0,0.00013365,2]
[419136125,1774912231890,-151.0,0.00013365,2]
[419136126,1774912231899,-151.0,0.00013365,2]
[419136127,1774912231909,-151.0,0.00013365,2]
[419136128,1774912231918,-151.0,0.00013365,2]
[419136129,1774912231927,-151.0,0.00013365,2]
[419136130,1774912231936,-151.0,0.00013365,2]
[419136131,1774912231946,-151.0,0.00013365,2]
[419136132,1774912231955,-151.0,0.00013365,2]
[419136133,1774912231964,-151.0,0.00013365,2]
[419136134,1774912231975,-151.0,0.00013365,2]
[419136135,1774912231984,-151.0,0.00013365,2]
[419136137,1774912231993,-151.0,0.00013365,2]
[419136139,1774912232002,-151.0,0.00013365,2]
[419136140,1774912232011,-151.0,0.00013365,2]
[419136141,1774912232020,-151.0,0.00013365,2]
[419136143,1774912232030,-151.0,0.00013365,2]
[419136145,1774912232039,-151.0,0.00013365,2]
[419136147,1774912232048,-151.0,0.00013365,2]
[419136149,1774912232057,-151.0,0.00013365,2]
[419136151,1774912232066,-151.0,0.00013365,2]
[419136153,1774912232077,-151.0,0.00013365,2]
[419136155,1774912232087,-151.0,0.00013365,2]
[419136157,1774912232096,-107883.6582,0.00013373,2]
[419136158,1774912232105,-500.0,0.00013373,2]
[419136159,1774912232115,-21686.0,0.000134,2]